bitfinex-derivatives/quotes_SOLF0:USTF0_20241217
["timestamp","ask_amount","ask_price","bid_price","bid_amount"]
[1734415563079,2.3217,215.37,215.32,2.3222]
[1734415563282,7.35080198,215.38,215.32,2.3222]
[1734415564480,9.67240198,215.38,215.32,2.3222]
[1734415565280,7.35080198,215.38,215.32,2.3222]
[1734415565482,2.3217,215.37,215.32,2.3222]
[1734415565683,7.35080198,215.36,215.31,2.12]
[1734415566279,7.35080198,215.38,215.31,2.12]
[1734415566680,7.35080198,215.38,215.31,4.4423]
[1734415567078,9.67250198,215.38,215.31,2.12]
[1734415567276,9.67250198,215.38,215.33,2.3221]
[1734415567684,7.35080198,215.43,215.36,7.35080198]
[1734415567885,7.35080198,215.43,215.37,2.1]
[1734415568882,2.3212,215.42,215.37,2.1]
[1734415569078,9.67200198,215.42,215.37,2.1]
[1734415569275,9.67200198,215.42,215.37,4.4216]
[1734415570682,2.3213,215.41,215.37,4.4216]
[1734415570884,7.35080198,215.42,215.37,2.1]
[1734415571283,9.67230198,215.4,215.37,2.1]
[1734415571588,7.35080198,215.4,215.37,2.1]
[1734415572488,2.3215,215.39,215.37,2.1]
[1734415573085,2.3215,215.39,215.34,2.322]
[1734415573287,2.3215,215.39,215.35,2.1]
[1734415574182,2.3215,215.39,215.34,2.322]
[1734415574183,7.35080198,215.36,215.33,2.3221]
[1734415574387,7.35080198,215.36,215.32,2.1]
[1734415574985,2.3218,215.36,215.32,4.4222]
[1734415575186,7.35080198,215.38,215.32,11.77300198]
[1734415575483,2.3215,215.39,215.35,7.35080198]
[1734415575688,7.35080198,215.42,215.35,7.35080198]
[1734415575887,7.35080198,215.42,215.36,2.1]
[1734415576587,2.1,215.46,215.36,2.1]
[1734415576995,2.3211,215.43,215.39,2.3215]
[1734415577399,7.35080198,215.44,215.39,2.3215]
[1734415577603,9.67180198,215.44,215.39,2.3215]
[1734415579094,2.3211,215.43,215.38,2.3216]
[1734415580297,9.67200198,215.42,215.37,2.3217]
[1734415580898,2.3211,215.43,215.38,2.3216]
[1734415581707,7.35080198,215.44,215.37,7.35080198]
[1734415581899,67.08,215.58,215.39,7.35080198]
[1734415582102,7.35080198,215.48,215.41,7.35080198]
[1734415582297,9.67160198,215.46,215.41,4.4212]
[1734415582596,7.35080198,215.46,215.41,2.1]
[1734415583003,7.35080198,215.46,215.41,4.4213]
[1734415583505,9.67140198,215.48,215.43,2.321]
[1734415583700,30.24111275,215.52,215.43,2.321]
[1734415583701,7.99298198,215.5,215.43,7.35080198]
[1734415584902,0.64218,215.5,215.45,2.3208]
[1734415585102,0.64218,215.5,215.45,9.45080198]
[1734415585502,0.64218,215.5,215.48,2.3205]
[1734415585698,0.64218,215.5,215.45,9.45080198]
[1734415586303,7.35080198,215.52,215.45,9.45080198]
[1734415586705,7.35080198,215.52,215.48,2.3204]
[1734415586904,7.35080198,215.52,215.49,2.1]
[1734415587299,7.35080198,215.54,215.49,2.1]
[1734415587997,7.35080198,215.56,215.49,9.45080198]
[1734415588398,3.0387,215.57,215.49,9.45080198]
[1734415588601,7.35080198,215.56,215.49,9.45080198]
[1734415588803,7.35080198,215.54,215.5,2.3203]
[1734415589709,7.35080198,215.54,215.49,9.45080198]
[1734415589911,7.35080198,215.56,215.51,2.3201]
[1734415591005,7.35080198,215.56,215.52,2.3201]
[1734415592510,2.3196,215.57,215.52,2.3201]
[1734415592905,2.3196,215.57,215.53,2.1]
[1734415593713,0.79152,215.61,215.53,2.1]
[1734415594012,7.35080198,215.6,215.53,9.45080198]
[1734415594316,0.79152,215.61,215.53,2.1]
[1734415594317,7.35080198,215.58,215.53,2.1]
[1734415594507,7.35080198,215.56,215.53,2.1]
[1734415595111,0.79152,215.61,215.53,2.1]
[1734415595409,9.67030198,215.58,215.53,2.1]
[1734415597813,0.79152,215.61,215.56,7.35080198]
[1734415598019,0.79152,215.61,215.53,2.1]
[1734415598212,0.79152,215.61,215.58,2.3194]
[1734415598417,0.79152,215.61,215.58,4.4194]
[1734415599314,8.14232198,215.61,215.58,2.1]
[1734415600420,2.3193,215.6,215.58,2.1]
[1734415602120,8.14232198,215.61,215.58,2.1]
[1734415602121,0.79152,215.61,215.58,2.1]
[1734415602811,2.3192,215.6,215.58,2.1]
[1734415603915,0.79152,215.61,215.58,2.1]
[1734415604119,0.79152,215.61,215.58,4.4194]
[1734415606421,0.79152,215.61,215.58,2.1]
[1734415608123,2.319,215.62,215.58,2.1]
[1734415608320,7.35080198,215.64,215.58,2.1]
[1734415608524,7.35080198,215.62,215.58,2.1]
[1734415609523,2.3191,215.61,215.58,2.1]
[1734415609913,7.35080198,215.62,215.58,2.1]
[1734415611115,7.35080198,215.64,215.58,4.4194]
[1734415612528,2.3189,215.63,215.58,4.4194]
[1734415613023,7.35080198,215.64,215.58,2.1]
[1734415613228,2.3191,215.61,215.58,2.1]
[1734415614129,2.319,215.63,215.58,2.1]
[1734415614322,7.35080198,215.64,215.58,2.1]
[1734415615825,2.3191,215.62,215.58,2.1]
[1734415616031,7.35080198,215.64,215.58,2.1]
[1734415616632,2.319,215.63,215.58,4.4194]
[1734415617230,2.319,215.62,215.58,4.4194]
[1734415618120,2.3189,215.63,215.58,4.4194]
[1734415620630,7.35080198,215.65,215.58,4.4194]
[1734415620822,2.319,215.62,215.58,4.4194]
[1734415622125,2.3189,215.64,215.58,4.4194]
[1734415622328,3.1994,215.68,215.63,7.35080198]
[1734415622628,2.3184,215.67,215.63,9.45080198]
[1734415625838,2.3188,215.64,215.63,2.1]
[1734415626333,2.3187,215.65,215.63,2.1]
[1734415628226,2.3185,215.67,215.63,2.1]
[1734415630838,2.3186,215.66,215.63,2.1]
[1734415632335,12.90836728,215.7,215.63,2.1]
[1734415632336,7.35080198,215.68,215.63,2.1]
[1734415633141,2.3188,215.64,215.63,2.1]
[1734415633443,2.3188,215.64,215.61,7.35080198]
[1734415635140,7.35080198,215.64,215.58,9.45080198]
[1734415635535,2.319,215.63,215.58,2.1]
[1734415635837,7.35080198,215.64,215.58,2.1]
[1734415636242,2.3193,215.6,215.58,2.1]
[1734415636840,7.35080198,215.63,215.58,2.1]
[1734415637339,7.35080198,215.63,215.56,9.45080198]
[1734415638241,7.35080198,215.63,215.58,7.35080198]
[1734415638636,2.3192,215.6,215.58,7.35080198]
[1734415639337,2.3193,215.59,215.56,9.45080198]
[1734415640944,2.3195,215.57,215.52,2.32]
[1734415641141,7.35080198,215.61,215.54,7.35080198]
[1734415641443,7.35080198,215.61,215.54,9.45080198]
[1734415642143,2.3195,215.57,215.54,7.35080198]
[1734415642345,7.35080198,215.59,215.54,9.45080198]
[1734415642640,2.3197,215.56,215.54,2.1]
[1734415643543,2.3197,215.55,215.54,2.1]
[1734415643935,2.3197,215.55,215.5,2.3202]
[1734415644143,2.32,215.53,215.51,9.45080198]
[1734415645246,7.35080198,215.57,215.51,7.35080198]
[1734415646342,2.32,215.53,215.51,7.35080198]
[1734415649746,2.32,215.53,215.49,9.47080198]
[1734415654054,2.3202,215.51,215.49,2.12]
[1734415654245,2.3202,215.51,215.47,7.35080198]
[1734415654448,2.3202,215.51,215.48,2.12]
[1734415654644,7.35080198,215.55,215.48,2.12]
[1734415654852,2.3201,215.52,215.49,7.35080198]
[1734415658855,2.3199,215.54,215.49,7.35080198]
[1734415659157,8.98540198,215.6,215.53,7.35080198]
[1734415659357,8.98540198,215.6,215.53,9.45080198]
[1734415660453,2.3195,215.57,215.53,9.45080198]
[1734415661054,8.98540198,215.6,215.53,9.45080198]
[1734415661358,2.3196,215.56,215.53,9.45080198]
[1734415661760,8.98540198,215.6,215.53,9.45080198]
[1734415661962,14.55124047,215.6,215.53,9.45080198]
[1734415662655,2.3195,215.57,215.53,11.77070198]
[1734415663864,2.3195,215.57,215.53,9.45080198]
[1734415664373,2.3196,215.56,215.53,9.45080198]
[1734415665472,2.3196,215.56,215.53,2.1]
[1734415666069,7.35080198,215.58,215.53,2.1]
[1734415666268,7.20043849,215.6,215.53,2.1]
[1734415666269,2.3198,215.54,215.53,2.1]
[1734415666469,7.35080198,215.56,215.5,2.1]
[1734415667065,2.32,215.53,215.5,2.1]
[1734415667770,7.35080198,215.54,215.48,2.1]
[1734415668272,2.3204,215.5,215.47,2.1]
[1734415670667,2.3204,215.5,215.46,11.22090198]
[1734415670874,2.3204,215.5,215.48,2.1]
[1734415674076,2.3202,215.51,215.48,2.1]
[1734415675877,2.3206,215.47,215.4,1.515]
[1734415676076,7.35080198,215.5,215.43,7.35080198]
[1734415676781,2.3206,215.47,215.43,9.67180198]
[1734415676983,2.3206,215.47,215.44,2.1]
[1734415678069,2.3206,215.47,215.43,11.77180198]
[1734415678274,2.3206,215.47,215.43,9.67180198]
[1734415678679,2.3206,215.47,215.43,11.77180198]
[1734415680371,2.3206,215.47,215.31,4.6445]
[1734415680578,1.6392,215.53,215.41,9.67200198]
[1734415680579,2.3208,215.45,215.41,9.67200198]
[1734415680978,7.35080198,215.48,215.41,7.35080198]
[1734415681175,7.35080198,215.46,215.39,9.67220198]
[1734415682173,7.35080198,215.46,215.4,2.3213]
[1734415682174,2.321,215.44,215.4,2.3213]
[1734415682677,2.321,215.44,215.39,9.67220198]
[1734415682880,2.321,215.44,215.39,11.77220198]
[1734415683270,2.321,215.43,215.39,11.77220198]
[1734415683779,2.321,215.43,215.39,4.4214]
[1734415684480,2.3209,215.44,215.4,7.35080198]
[1734415684676,2.3209,215.44,215.4,9.67210198]
[1734415684875,2.3209,215.44,215.4,11.77210198]
[1734415685476,2.3209,215.44,215.4,9.45080198]
[1734415685676,2.3211,215.43,215.4,9.45080198]
[1734415686876,2.3211,215.43,215.4,2.1]
[1734415687080,2.3212,215.41,215.37,9.67250198]
[1734415687379,2.3212,215.41,215.38,2.1]
[1734415691173,2.3211,215.42,215.38,2.3215]
[1734415691378,3.7362,215.47,215.39,7.35080198]
[1734415691379,7.35080198,215.46,215.39,7.35080198]
[1734415691785,2.3209,215.44,215.4,2.3212]
[1734415693788,2.3209,215.44,215.39,9.67220198]
[1734415694487,2.321,215.43,215.39,9.67220198]
[1734415695183,2.321,215.43,215.39,2.3214]
[1734415695981,2.321,215.43,215.38,2.1]
[1734415697084,2.321,215.43,215.38,4.4215]
[1734415697584,2.3212,215.41,215.38,2.1]
[1734415699990,2.321,215.44,215.39,2.3214]
[1734415700685,2.321,215.43,215.39,2.3214]
[1734415700988,7.35080198,215.46,215.4,2.3213]
[1734415701690,1.6362,215.47,215.38,9.45080198]
[1734415701691,7.35080198,215.44,215.38,11.77230198]
[1734415702590,2.321,215.43,215.38,11.77230198]
[1734415702790,2.321,215.43,215.39,2.3214]
[1734415702986,2.321,215.43,215.38,9.45080198]
[1734415703286,7.35080198,215.44,215.38,9.45080198]
[1734415703487,2.3211,215.42,215.38,9.45080198]
[1734415703790,7.35080198,215.4,215.35,2.1]
[1734415703983,2.3216,215.38,215.35,2.1]
[1734415704179,7.35080198,215.4,215.35,2.1]
[1734415704384,7.35080198,215.42,215.35,9.45080198]
[1734415704988,7.35080198,215.42,215.35,11.77270198]
[1734415704989,2.3213,215.4,215.35,11.77270198]
[1734415706187,7.35080198,215.42,215.36,2.1]
[1734415706393,2.3215,215.39,215.36,2.1]
[1734415707288,2.3216,215.38,215.36,2.1]
[1734415707988,2.3216,215.38,215.35,2.1]
[1734415710790,2.3216,215.38,215.34,2.322]
[1734415710988,2.3215,215.39,215.35,4.4219]
[1734415712492,2.3211,215.43,215.38,2.3215]
[1734415712694,2.3211,215.43,215.37,7.35080198]
[1734415712992,1.634,215.48,215.39,7.35080198]
[1734415713191,7.35080198,215.47,215.4,2.1]
[1734415714489,2.1,215.52,215.42,2.3211]
[1734415714694,7.35080198,215.46,215.42,2.3211]
[1734415716996,9.67150198,215.46,215.4,4.4212]
[1734415718400,7.35080198,215.46,215.4,4.4212]
[1734415718699,2.3208,215.45,215.4,4.4212]
[1734415719700,2.3209,215.44,215.4,4.4212]
[1734415720802,9.67170198,215.44,215.4,4.4212]
[1734415723001,7.35080198,215.44,215.4,2.1]
[1734415723199,2.3212,215.42,215.4,2.1]
[1734415724101,2.3212,215.41,215.4,2.1]
[1734415725903,2.3212,215.41,215.31,5.63578714]
[1734415725904,7.35080198,215.42,215.31,5.63578714]
[1734415726106,2.3215,215.39,215.33,3.26130719]
[1734415726407,2.3215,215.39,215.34,1.16130719]
[1734415726708,2.3215,215.39,215.34,7.35080198]
[1734415727208,1.571,215.45,215.37,2.3217]
[1734415727504,8.92180198,215.45,215.38,7.35080198]
[1734415727707,2.3209,215.44,215.39,2.3214]
[1734415728305,2.3209,215.44,215.38,7.35080198]
[1734415728909,9.67200198,215.41,215.37,2.1]
[1734415730208,7.35080198,215.39,215.32,3.6831]
[1734415730509,7.35080198,215.39,215.24,53.08]
[1734415730510,7.35080198,215.34,215.31,2.1]
[1734415732109,9.67280198,215.34,215.3,2.1]
[1734415733508,7.35080198,215.34,215.3,2.1]
[1734415733711,2.3221,215.33,215.3,2.1]
[1734415734611,2.3221,215.33,215.29,4.4225]
[1734415734809,2.3221,215.33,215.29,2.1]
[1734415736505,7.35080198,215.34,215.25,1.6182]
[1734415736709,2.1,215.37,215.05,169.0119632]
[1734415736710,7.35080198,215.32,215.26,3.48448818]
[1734415737008,7.35080198,215.32,215.27,2.1]
[1734415737211,7.35080198,215.34,215.28,2.3226]
[1734415738414,9.67290198,215.34,215.28,2.3226]
[1734415739115,9.67260198,215.36,215.31,2.3223]
[1734415739310,7.35080198,215.36,215.31,2.3223]
[1734415739510,7.35080198,215.36,215.31,4.4223]
[1734415739711,7.35080198,215.36,215.31,2.1]
[1734415739911,2.3219,215.35,215.31,2.1]
[1734415740417,2.3217,215.37,215.31,11.77310198]
[1734415740619,7.35080198,215.37,215.31,11.77310198]
[1734415740818,7.35080198,215.37,215.31,4.4223]
[1734415741016,2.322,215.34,215.31,2.1]
[1734415741512,7.35080198,215.37,215.31,2.1]
[1734415741708,2.3219,215.36,215.31,2.1]
[1734415742313,2.3219,215.35,215.3,2.3224]
[1734415742624,9.67270198,215.35,215.3,4.4224]
[1734415746422,2.3228,215.27,215.18,3.1011]
[1734415746621,7.35080198,215.26,215.19,8.51266773]
[1734415746925,7.35080198,215.26,215.2,3.26186575]
[1734415747125,7.35080198,215.26,215.19,7.35080198]
[1734415747319,7.35080198,215.26,215.21,2.1]
[1734415748522,2.323,215.25,215.21,2.1]
[1734415749026,9.67360198,215.26,215.21,2.1]
[1734415750230,7.35080198,215.26,215.21,2.1]
[1734415750526,2.323,215.25,215.2,4.4235]
[1734415752929,2.3231,215.24,215.2,2.1]
[1734415754326,7.35080198,215.26,215.2,2.1]
[1734415754527,2.3232,215.23,215.2,2.1]
[1734415755134,2.3232,215.23,215.19,9.45080198]
[1734415756034,2.3232,215.23,215.19,7.35080198]
[1734415756231,2.3232,215.23,215.19,9.45080198]
[1734415756632,2.3231,215.24,215.19,11.77440198]
[1734415756832,7.35080198,215.26,215.19,11.77440198]
[1734415758127,7.35080198,215.26,215.19,9.45080198]
[1734415758335,2.3233,215.23,215.19,9.45080198]
[1734415758737,7.35080198,215.27,215.21,7.35080198]
[1734415759034,7.35080198,215.3,215.23,7.35080198]
[1734415759434,7.35080198,215.3,215.23,9.45080198]
[1734415760136,2.3227,215.28,215.23,11.77400198]
[1734415760737,2.3225,215.3,215.25,7.35080198]
[1734415761032,1.6403,215.33,215.27,7.35080198]
[1734415761232,1.6403,215.33,215.28,2.3226]
[1734415761440,1.5314,215.34,215.29,7.35080198]
[1734415761629,5.2422,215.38,215.29,7.35080198]
[1734415761830,2.3221,215.34,215.29,7.35080198]
[1734415762334,1.553,215.38,215.33,7.35080198]
[1734415762633,1.6256,215.4,215.35,7.35080198]
[1734415763437,2.3216,215.38,215.35,7.35080198]
[1734415766040,7.35080198,215.42,215.35,7.35080198]
[1734415766541,2.3212,215.42,215.37,7.35080198]
[1734415766735,2.3212,215.42,215.38,2.1]
[1734415766936,7.35080198,215.42,215.38,2.1]
[1734415767140,2.3212,215.41,215.38,2.1]
[1734415769639,2.321,215.43,215.38,2.1]
[1734415773947,9.67190198,215.42,215.38,2.1]
[1734415779746,9.67190198,215.42,215.38,4.4215]
[1734415786051,1.5467,215.48,215.41,2.3212]
[1734415786350,8.89750198,215.48,215.42,2.1]
[1734415786547,7.35080198,215.48,215.42,2.1]
[1734415786947,2.3206,215.47,215.43,2.321]
[1734415787146,7.35080198,215.48,215.43,2.321]
[1734415787556,2.3206,215.47,215.43,2.321]
[1734415791848,2.3208,215.45,215.42,2.1]
[1734415792047,7.35080198,215.46,215.42,2.1]
[1734415792454,9.67150198,215.46,215.42,4.4211]
[1734415793858,9.67150198,215.46,215.42,2.1]
[1734415793859,2.3208,215.45,215.42,2.1]
[1734415794059,7.35080198,215.44,215.39,2.1]
[1734415794662,7.35080198,215.42,215.39,2.1]
[1734415796566,9.67200198,215.42,215.39,2.1]
[1734415799158,9.67200198,215.42,215.36,7.35080198]
[1734415799465,2.3212,215.41,215.37,4.4217]
[1734415799663,2.3212,215.41,215.37,2.3217]
[1734415800259,7.35080198,215.4,215.36,4.4218]
[1734415802160,9.67220198,215.4,215.36,2.1]
[1734415802365,9.67220198,215.4,215.31,1.5171]
[1734415802366,7.35080198,215.38,215.31,1.5171]
[1734415802567,7.35080198,215.38,215.32,2.1]
[1734415803360,7.35080198,215.36,215.32,2.1]
[1734415805468,2.3217,215.37,215.33,2.3221]
[1734415808362,2.3217,215.37,215.32,2.1]
[1734415808363,2.3217,215.37,215.32,4.4221]
[1734415810765,9.67260198,215.36,215.32,2.1]
[1734415811371,9.67260198,215.36,215.32,4.4222]
[1734415814668,9.67260198,215.36,215.32,2.1]
[1734415814865,2.322,215.35,215.3,4.4223]
[1734415817174,2.322,215.35,215.3,2.1]
[1734415817374,2.322,215.35,215.31,2.3223]
[1734415818270,2.322,215.35,215.3,4.4224]
[1734415818471,7.35080198,215.34,215.3,2.1]
[1734415818670,7.35080198,215.32,215.26,2.1]
[1734415818874,7.35080198,215.32,215.26,4.4228]
[1734415820373,7.35080198,215.32,215.26,2.1]
[1734415820374,2.3226,215.29,215.26,2.1]
[1734415820580,2.3226,215.29,215.25,2.1]
[1734415822186,7.35080198,215.3,215.23,2.1]
[1734415822391,7.35080198,215.28,215.22,7.35080198]
[1734415822687,7.35080198,215.28,215.22,2.1]
[1734415823091,2.323,215.25,215.17,3.1373]
[1734415823288,7.35080198,215.26,215.2,7.35080198]
[1734415823489,7.35080198,215.24,215.18,2.1]
[1734415823689,2.3233,215.22,215.18,7.35080198]
[1734415825090,7.35080198,215.24,215.17,2.1]
[1734415825486,2.3232,215.23,215.18,9.67450198]
[1734415826687,2.3232,215.23,215.18,7.35080198]
[1734415826894,2.3233,215.22,215.17,4.4238]
[1734415827086,2.3233,215.22,215.17,11.77460198]
[1734415827292,2.3235,215.21,215.17,2.1]
[1734415827488,7.35080198,215.24,215.17,2.1]
[1734415827997,2.3235,215.21,215.16,7.35080198]
[1734415828293,7.35080198,215.24,215.16,7.35080198]
[1734415828688,2.3235,215.21,215.16,7.35080198]
[1734415829594,7.35080198,215.22,215.16,7.35080198]
[1734415829794,2.3235,215.2,215.16,7.35080198]
[1734415831899,2.3236,215.19,215.15,2.1]
[1734415832202,2.3236,215.19,215.16,7.35080198]
[1734415833697,2.3235,215.2,215.16,7.35080198]
[1734415833900,2.3235,215.2,215.18,7.35080198]
[1734415834201,12.92342611,215.26,215.18,9.67450198]
[1734415834494,2.3233,215.22,215.18,7.35080198]
[1734415834695,7.35080198,215.24,215.14,2.1]
[1734415834901,7.35080198,215.24,215.16,9.67460198]
[1734415834902,2.3234,215.21,215.16,9.67460198]
[1734415836295,2.3235,215.2,215.15,9.45080198]
[1734415836492,7.35080198,215.22,215.15,9.45080198]
[1734415836897,2.3235,215.2,215.15,11.77480198]
[1734415838494,2.3233,215.22,215.17,7.35080198]
[1734415838694,7.35080198,215.24,215.18,7.35080198]
[1734415839401,2.3234,215.21,215.18,7.35080198]
[1734415844009,2.3235,215.2,215.16,7.35080198]
[1734415844204,2.3235,215.2,215.15,11.77480198]
[1734415845409,2.3235,215.2,215.17,7.35080198]
[1734415847005,2.3234,215.22,215.17,9.67460198]
[1734415847809,2.3231,215.24,215.19,7.35080198]
[1734415848012,13.03813556,215.29,215.21,7.35080198]
[1734415848409,2.3228,215.27,215.23,2.3231]
[1734415848908,2.3228,215.27,215.21,7.35080198]
[1734415850508,2.3228,215.27,215.22,2.3233]
[1734415852412,2.3228,215.27,215.23,9.67390198]
[1734415852615,0.38784,215.32,215.25,7.35080198]
[1734415852817,0.38784,215.32,215.27,7.35080198]
[1734415853222,2.71004,215.32,215.27,7.35080198]
[1734415853519,2.71004,215.32,215.27,9.45080198]
[1734415853712,0.38784,215.32,215.27,9.45080198]
[1734415853919,0.38784,215.32,215.28,2.3226]
[1734415854317,0.38784,215.32,215.29,9.67330198]
[1734415854821,0.38784,215.32,215.29,2.3225]
[1734415855019,0.38784,215.32,215.27,9.45080198]
[1734415855318,0.38784,215.32,215.29,9.67320198]
[1734415856023,0.38784,215.32,215.29,7.35080198]
[1734415856222,0.38784,215.32,215.3,2.3224]
[1734415856817,0.38784,215.32,215.28,2.3225]
[1734415857017,0.38784,215.32,215.27,9.45080198]
[1734415858522,0.38784,215.32,215.29,2.3225]
[1734415862126,7.35080198,215.33,215.29,2.3225]
[1734415864126,7.35080198,215.31,215.26,2.1]
[1734415864328,5.71282527,215.36,215.26,2.1]
[1734415864329,7.35080198,215.29,215.26,2.1]
[1734415864821,9.67330198,215.29,215.26,2.1]
[1734415865024,9.67330198,215.29,215.23,7.35080198]
[1734415865222,9.67330198,215.29,215.23,9.45080198]
[1734415866223,9.67330198,215.29,215.21,8.84830198]
[1734415866425,9.67330198,215.29,215.24,2.323]
[1734415867826,7.35080198,215.25,215.21,2.3233]
[1734415871222,7.35080198,215.25,215.21,4.4233]
[1734415873534,2.3229,215.26,215.21,4.4233]
[1734415873732,9.67370198,215.26,215.21,4.4233]
[1734415874627,2.3229,215.26,215.21,4.4233]
[1734415874826,7.35080198,215.25,215.21,4.4233]
[1734415875227,7.35080198,215.25,215.21,2.3233]
[1734415876730,2.3229,215.26,215.21,2.3233]
[1734415876938,11.82117839,215.35,215.21,7.35080198]
[1734415877227,7.35080198,215.29,215.21,7.35080198]
[1734415878435,9.67330198,215.29,215.24,2.323]
[1734415878637,9.67330198,215.29,215.24,4.423]
[1734415881331,9.67330198,215.29,215.25,2.3229]
[1734415881833,7.35080198,215.29,215.25,2.3229]
[1734415884335,9.67330198,215.29,215.25,2.3229]
[1734415884928,7.35080198,215.28,215.25,2.3229]
[1734415889532,7.35080198,215.26,215.17,5.59118795]
[1734415889736,7.35080198,215.24,215.19,2.3235]
[1734415890536,7.35080198,215.24,215.2,2.1]
[1734415890832,9.67390198,215.24,215.2,2.1]
[1734415891239,9.67390198,215.24,215.2,2.3235]
[1734415891437,9.67390198,215.24,215.2,4.4235]
[1734415892139,9.67390198,215.24,215.2,2.3235]
[1734415892338,7.35080198,215.22,215.2,2.3235]
[1734415893544,7.35080198,215.22,215.19,4.4236]
[1734415897637,9.67390198,215.24,215.19,4.4236]
[1734415898341,9.67390198,215.24,215.19,2.3236]
[1734415898535,9.67390198,215.24,215.19,4.4236]
[1734415899344,9.67390198,215.24,215.2,2.3235]
[1734415899543,9.67410198,215.22,215.18,2.1]
[1734415900040,9.67410198,215.22,215.17,2.1]
[1734415900439,9.67410198,215.22,215.17,4.4238]
[1734415900745,9.67410198,215.22,215.17,2.1]
[1734415901142,7.35080198,215.22,215.18,2.3236]
[1734415903746,2.3232,215.23,215.19,2.3236]
[1734415907645,9.67410198,215.22,215.18,2.3237]
[1734415908442,9.67410198,215.22,215.17,4.4238]
[1734415910244,9.67410198,215.22,215.17,2.3238]
[1734415910450,2.3234,215.21,215.16,4.4239]
[1734415910746,7.35080198,215.18,215.09,5.68200836]
[1734415910938,7.35080198,215.18,215.11,7.35080198]
[1734415911144,7.35080198,215.18,215.12,1.16241112]
[1734415911348,7.35080198,215.18,215.13,1.16241112]
[1734415911543,2.3239,215.17,215.11,7.35080198]
[1734415911946,2.3239,215.17,215.12,1.16241786]
[1734415912146,2.3239,215.17,215.13,1.16241786]
[1734415912339,2.3239,215.17,215.11,7.35080198]
[1734415912542,2.3239,215.17,215.13,2.3242]
[1734415916151,7.35080198,215.16,215.13,2.3242]
[1734415916549,7.35080198,215.16,215.12,4.4243]
[1734415917149,9.67470198,215.16,215.12,4.4243]
[1734415919856,9.67470198,215.16,215.12,2.3243]
[1734415921549,9.67470198,215.16,215.11,4.4245]
[1734415926265,9.67460198,215.18,215.12,9.67510198]
[1734415930662,2.3238,215.18,215.12,9.67510198]
[1734415930971,8.95310198,215.21,215.14,7.35080198]
[1734415931171,8.95310198,215.21,215.15,2.1]
[1734415932463,7.35080198,215.19,215.15,4.4239]
[1734415932670,7.35080198,215.19,215.15,2.1]
[1734415933466,9.67450198,215.19,215.15,2.1]
[1734415934166,7.35080198,215.17,215.07,5.58791051]
[1734415934374,2.3239,215.16,215.1,7.35080198]
[1734415934569,7.35080198,215.17,215.11,1.16240452]
[1734415934871,7.35080198,215.17,215.12,1.16240452]
[1734415935074,7.35080198,215.17,215.12,2.1]
[1734415935963,2.3237,215.19,215.13,2.3242]
[1734415936168,2.3237,215.19,215.12,9.45080198]
[1734415936770,2.3237,215.19,215.13,1.16243784]
[1734415936968,2.3237,215.19,215.12,9.45080198]
[1734415937273,2.3237,215.19,215.13,1.16243713]
[1734415937472,2.3237,215.19,215.14,2.324]
[1734415937870,7.35080198,215.18,215.14,2.324]
[1734415939269,9.67450198,215.18,215.14,2.324]
[1734415939471,7.35080198,215.16,215.09,9.67540198]
[1734415939672,7.35080198,215.16,215.1,3.26251216]
[1734415939869,7.35080198,215.16,215.11,1.16250796]
[1734415940171,7.35080198,215.16,215.1,2.1]
[1734415940365,7.35080198,215.16,215.11,1.16249678]
[1734415940565,7.35080198,215.16,215.12,3.48679678]
[1734415940771,7.35080198,215.16,215.12,2.3243]
[1734415941266,2.3238,215.17,215.12,2.3243]
[1734415941467,2.3238,215.17,215.13,1.16249411]
[1734415941669,2.3238,215.17,215.14,2.1]
[1734415942573,2.324,215.16,215.14,2.1]
[1734415942878,9.67480198,215.16,215.14,2.1]